bitfinex/quotes_ETHUSD_20250815
["timestamp","ask_amount","ask_price","bid_price","bid_amount"]
[1755237872528,0.108,4643.4,4643.1,2.15372906]
[1755237873038,0.108,4643.4,4642.9,0.01585075]
[1755237873337,0.108,4643.4,4643.3,2.15364072]
[1755237873493,3.397,4644.5,4643.3,0.4544]
[1755237873694,0.108,4644.7,4644.0,0.108]
[1755237874029,0.00084904,4644.8,4644.7,2.15299158]
[1755237874239,0.00084904,4644.8,4644.2,0.9178]
[1755237874549,0.00084904,4644.8,4644.6,0.108]
[1755237874703,0.00084904,4644.8,4644.3,2.1531331]
[1755237875034,0.00084904,4644.8,4644.4,2.15313065]
[1755237875243,0.00084904,4644.8,4644.4,0.108]
[1755237876904,0.00084904,4644.8,4643.0,2.15374982]
[1755237876905,0.00084904,4644.8,4643.4,2.15356406]
[1755237877112,0.108,4644.5,4643.9,0.108]
[1755237877323,0.22610375,4644.4,4643.9,0.108]
[1755237877536,0.22610375,4644.4,4643.8,1.0]
[1755237877742,0.108,4644.2,4643.8,1.0]
[1755237878744,2.1533161,4644.0,4643.8,1.0]
[1755237878948,2.59326247,4643.9,4643.8,1.0]
[1755237879119,1.21169625,4643.9,4643.8,1.0]
[1755237879640,1.31969625,4643.9,4643.8,1.0]
[1755237879845,0.82179625,4643.9,4643.8,1.0]
[1755237880045,0.5479,4643.9,4643.8,1.0]
[1755237880349,0.108,4643.9,4643.8,1.0]
[1755237880545,0.108,4644.1,4643.8,1.0]
[1755237882570,0.4399,4644.0,4643.8,1.0]
[1755237882753,0.108,4644.1,4643.8,1.0]
[1755237882954,0.37830322,4644.1,4643.8,1.0]
[1755237883154,0.108,4644.1,4643.8,1.0]
[1755237884768,0.46681645,4644.0,4643.8,1.0]
[1755237884972,0.4399,4643.9,4643.8,1.0]
[1755237885168,0.108,4644.1,4643.0,0.9178]
[1755237885466,0.108,4644.1,4643.1,0.9178]
[1755237885672,0.002,4644.2,4643.1,0.9178]
[1755237885838,0.002,4644.2,4643.6,2.15348951]
[1755237885839,0.108,4644.0,4643.6,2.15348951]
[1755237886039,0.108,4644.0,4643.4,0.108]
[1755237886390,0.108,4644.0,4643.6,2.15350159]
[1755237886666,0.108,4644.0,4643.4,0.108]
[1755237886870,2.15329103,4644.1,4642.4,3.0]
[1755237887056,0.4399,4643.9,4643.8,1.0]
[1755237887236,0.9378,4643.9,4643.8,1.0]
[1755237887442,2.15342537,4643.8,4642.8,2.1538504]
[1755237887638,0.108,4643.3,4642.9,2.15382062]
[1755237887877,0.108,4643.3,4642.7,2.26187369]
[1755237888068,0.108,4643.3,4642.7,0.108]
[1755237888270,2.1536266,4643.4,4642.4,2.15402107]
[1755237888474,0.108,4642.9,4642.2,0.5714]
[1755237889172,0.108,4642.9,4642.5,2.15400313]
[1755237889353,0.108,4642.9,4642.6,2.15394953]
[1755237889553,0.108,4642.9,4642.7,2.15390718]
[1755237889953,0.108,4642.9,4642.6,2.15396367]
[1755237890274,0.108,4642.9,4642.7,2.15391111]
[1755237890477,0.108,4642.9,4642.5,2.15401184]
[1755237890842,0.108,4642.9,4642.7,2.15387469]
[1755237891869,0.108,4642.9,4642.5,2.15401184]
[1755237892067,0.108,4642.9,4642.8,2.15387266]
[1755237892378,0.108,4642.9,4642.8,1.0]
[1755237892885,0.108,4643.3,4642.9,2.15382627]
[1755237893065,2.61472254,4644.9,4643.1,2.15373349]
[1755237893246,0.108,4644.0,4643.7,2.15341875]
[1755237893446,0.108,4644.0,4643.7,0.9325]
[1755237893679,0.108,4644.0,4643.6,2.15348777]
[1755237893847,0.108,4644.0,4643.2,0.108]
[1755237893848,0.108,4644.0,4643.7,2.15345037]
[1755237894049,0.108,4644.0,4643.2,2.26164719]
[1755237894386,0.108,4643.7,4643.5,2.15350329]
[1755237894882,0.108,4643.7,4643.1,0.9325]
[1755237895400,0.108,4643.7,4643.6,2.15350159]
[1755237895697,0.108,4644.0,4643.8,2.15336599]
[1755237895844,0.108,4644.0,4643.9,2.15336247]
[1755237896882,0.108,4644.0,4643.8,2.15340579]
[1755237897087,0.108,4644.0,4643.9,2.15336247]
[1755237897677,0.108,4644.0,4643.8,2.15340331]
[1755237898085,0.108,4644.0,4643.9,2.15336247]
[1755237898585,0.108,4644.0,4643.8,2.15340056]
[1755237898994,0.108,4644.0,4643.9,2.15336247]
[1755237899571,0.108,4644.4,4643.9,3.08586247]
[1755237899759,0.11,4644.6,4644.1,2.15326974]
[1755237900200,0.11,4644.6,4644.1,2.63406974]
[1755237900445,0.002,4644.6,4643.9,2.15335535]
[1755237900565,0.11,4644.2,4643.9,2.15335548]
[1755237900901,0.11,4644.2,4644.0,2.15331094]
[1755237901082,0.002,4644.2,4643.6,0.4517]
[1755237901395,0.002,4644.2,4644.0,2.15327217]
[1755237901969,0.002,4644.2,4643.8,2.2613824]
[1755237902297,0.002,4644.2,4643.6,0.108]
[1755237902621,0.02891529,4644.2,4643.6,0.108]
[1755237902779,0.108,4643.7,4643.1,0.0352]
[1755237902979,0.108,4643.2,4643.1,0.0352]
[1755237903577,2.26168711,4643.2,4643.1,0.0352]
[1755237903777,3.23970819,4643.2,4643.1,0.0352]
[1755237904009,3.21278711,4643.2,4643.1,0.0352]
[1755237907422,9.63392411,4643.2,4643.1,0.0352]
[1755237907588,10.09770919,4643.2,4643.1,0.0352]
[1755237909189,3.21278711,4643.2,4643.1,0.0352]
[1755237909917,9.66084519,4643.2,4643.1,0.0352]
[1755237910095,9.63392411,4643.2,4643.1,0.0352]
[1755237910481,13.01292411,4643.2,4643.1,0.0352]
[1755237910687,12.06082411,4643.2,4643.1,0.0352]
[1755237911018,5.69580516,4643.2,4643.1,0.0352]
[1755237911208,5.80380516,4643.2,4643.1,0.0352]
[1755237911405,5.173,4644.2,4643.1,0.0352]
[1755237911604,2.15365724,4643.3,4643.1,0.0352]
[1755237911808,3.378,4643.2,4643.1,0.0352]
[1755237912019,5.53168711,4643.2,4643.1,0.0352]
[1755237912486,6.48278711,4643.2,4643.1,0.0352]
[1755237912686,6.64225757,4643.2,4643.1,0.0352]
[1755237915026,2.15427797,4642.0,4641.6,0.001]
[1755237915229,2.15438309,4641.7,4641.6,0.001]
[1755237915455,2.18131287,4641.7,4641.6,0.001]
[1755237915733,3.13241287,4641.7,4641.6,0.001]
[1755237915893,9.52662009,4641.7,4641.6,0.001]
[1755237916703,9.03732009,4641.7,4641.6,0.001]
[1755237917421,3.379,4641.7,4641.6,0.001]
[1755237917623,3.379,4641.7,4641.6,0.9335]
[1755237918924,3.381,4641.7,4641.6,0.9335]
[1755237920649,3.381,4641.8,4641.6,0.9335]
[1755237920950,3.381,4641.9,4641.7,0.9325]
[1755237921150,2.15385346,4642.9,4641.9,2.1542824]
[1755237921348,3.38,4642.8,4641.9,2.1542824]
[1755237921520,3.38,4642.8,4642.0,0.4517]
[1755237921716,2.15393903,4642.7,4642.0,0.4517]
[1755237921919,0.108,4642.1,4642.0,0.4517]
[1755237922342,0.108,4642.1,4642.0,0.9121]
[1755237922752,0.108,4642.1,4642.0,3.06634386]
[1755237922952,3.378,4642.6,4642.0,1.23459804]
[1755237923257,3.378,4642.6,4642.4,2.15401713]
[1755237923258,0.108,4642.5,4642.4,2.15401713]
[1755237923830,0.00081557,4643.8,4642.4,2.15401713]
[1755237924033,0.108,4642.9,4642.5,0.9234]
[1755237924351,0.108,4642.9,4642.6,0.9234]
[1755237924554,0.108,4642.9,4642.7,0.9234]
[1755237924724,0.108,4642.9,4642.8,2.15387266]
[1755237924924,0.108,4642.9,4642.8,0.9234]
[1755237925754,0.108,4642.9,4642.8,3.07727266]
[1755237925954,0.108,4642.9,4642.8,0.9234]
[1755237926334,0.108,4642.9,4642.8,3.07727266]
[1755237926536,3.378,4643.7,4643.2,2.15368683]
[1755237926863,3.378,4643.7,4643.3,0.9234]
[1755237927923,0.108,4643.4,4643.3,0.9234]
[1755237928325,0.108,4643.4,4643.3,3.07704072]
[1755237929554,0.108,4643.4,4643.3,0.9234]
[1755237930357,0.108,4643.4,4642.9,2.15380266]
[1755237930522,0.108,4643.4,4642.6,0.9234]
[1755237930723,0.108,4643.0,4642.6,0.9234]
[1755237930956,0.108,4643.0,4642.9,2.15382601]
[1755237931650,0.108,4643.0,4642.7,0.9234]
[1755237931856,3.479,4643.0,4642.0,0.9234]
[1755237932154,3.371,4643.0,4642.0,3.07763192]
[1755237932343,0.108,4642.5,4642.0,0.4604]
[1755237932655,0.4752,4643.6,4642.0,0.4604]
[1755237932656,0.108,4642.7,4642.6,2.15396545]
[1755237932856,0.108,4642.7,4642.6,0.9234]
[1755237933024,0.108,4642.7,4642.0,0.108]
[1755237933552,0.108,4642.7,4642.1,2.15419745]
[1755237933752,0.108,4642.7,4642.0,0.108]
[1755237933956,0.108,4642.2,4641.8,2.154306]
[1755237934162,0.108,4642.2,4641.7,2.15438168]
[1755237934324,0.108,4642.2,4641.6,0.01686584]
[1755237934529,0.108,4642.2,4642.0,2.15420194]
[1755237934776,0.108,4642.2,4642.1,3.07759745]
[1755237935068,0.108,4642.6,4642.1,0.9234]
[1755237935246,0.108,4642.6,4642.0,0.108]
[1755237935247,0.108,4642.6,4642.3,2.1540999]
[1755237935489,0.108,4642.6,4642.5,2.15401184]
[1755237935843,0.108,4642.6,4642.5,3.07741184]
[1755237936465,0.108,4643.1,4642.8,2.15383022]
[1755237936674,0.108,4643.1,4642.4,0.108]
[1755237936823,3.376,4643.4,4642.4,2.15401826]
[1755237937029,0.108,4642.8,4642.4,2.15401826]
[1755237937577,0.108,4642.8,4642.5,2.15400607]
[1755237937873,0.108,4642.8,4642.4,3.07745331]
[1755237938026,0.108,4642.8,4642.3,2.15409589]
[1755237938462,2.18056405,4643.3,4642.1,2.15419522]
[1755237938666,0.108,4642.5,4641.9,2.26228174]
[1755237939048,0.4562,4642.9,4641.8,2.15432298]
[1755237939251,0.108,4642.1,4641.7,2.15437128]
[1755237939762,0.108,4642.1,4641.8,0.9234]
[1755237939946,0.108,4642.1,4642.0,2.15424386]
[1755237940154,0.108,4642.1,4642.0,3.07764386]
[1755237940525,3.374,4642.9,4642.2,2.15411346]
[1755237940727,0.108,4642.4,4642.0,0.9234]
[1755237940924,0.108,4642.4,4642.0,2.15423775]
[1755237941433,2.15355006,4643.5,4642.3,2.15410464]
[1755237941645,0.108,4643.3,4642.7,0.108]
[1755237941853,0.33415044,4643.3,4642.7,0.108]
[1755237942330,0.22615044,4643.3,4642.5,0.463]
[1755237942669,0.108,4642.8,4642.4,2.61444003]
[1755237942974,0.108,4642.8,4642.2,0.108]
[1755237943169,0.108,4642.8,4642.4,2.15405799]
[1755237943677,3.373,4643.7,4642.5,0.9234]
[1755237943969,0.00081557,4643.8,4642.6,4.3034]
[1755237944271,0.00081557,4643.8,4643.1,0.108]
[1755237944473,0.00081557,4643.8,4643.6,2.15349983]
[1755237944656,0.00081557,4643.8,4643.7,2.15345521]
[1755237945036,0.00081557,4643.8,4643.7,0.9234]
[1755237945495,0.00081557,4643.8,4643.3,2.15359457]
[1755237945660,0.00081557,4643.8,4643.1,0.108]
[1755237945863,0.00081557,4643.8,4643.3,2.15363932]
[1755237946170,0.108,4643.6,4643.1,0.47624762]
[1755237946361,0.108,4643.6,4643.0,2.1537394]
[1755237946666,0.108,4643.6,4643.3,2.15364072]
[1755237946846,0.108,4643.6,4643.2,0.9234]
[1755237947045,0.108,4643.6,4643.0,2.15374238]
[1755237947245,0.108,4643.6,4643.3,2.15361404]
[1755237947446,0.108,4643.6,4643.0,2.15377988]
[1755237947656,0.108,4643.6,4643.4,0.9234]
[1755237948152,0.108,4643.6,4643.3,2.15359439]
[1755237948153,0.108,4643.6,4643.2,2.15368464]
[1755237948537,0.108,4643.6,4643.3,2.15363608]
[1755237948736,0.108,4643.6,4642.9,0.108]
[1755237948943,0.108,4643.6,4642.9,2.26181997]
[1755237949139,0.108,4643.6,4643.0,0.93925042]
[1755237949375,0.108,4643.6,4643.0,0.9234]
[1755237949552,0.108,4643.6,4643.0,0.4604]
[1755237949737,0.108,4643.6,4643.0,0.9234]
[1755237950510,2.15359682,4643.4,4643.0,0.9234]
[1755237950774,2.15368711,4643.2,4642.2,0.463]
[1755237951069,2.15368711,4643.2,4641.6,0.001]
[1755237951070,0.108,4643.0,4641.8,3.375]
[1755237951237,3.08508562,4643.3,4642.0,0.108]
[1755237951238,2.15406478,4642.4,4642.0,0.108]
[1755237951441,0.4562,4642.9,4642.0,0.108]
[1755237951442,2.154197,4642.2,4642.0,0.108]
[1755237951640,0.2154197,4642.1,4642.0,0.108]
[1755237951874,2.15419745,4642.1,4642.0,0.108]
[1755237952073,0.5776,4642.1,4641.6,0.001]
[1755237952375,2.26238309,4641.7,4641.6,0.001]
[1755237953343,0.108,4641.7,4641.6,0.001]
[1755237954777,0.108,4641.9,4641.6,0.957]
[1755237954987,0.108,4641.9,4641.7,0.956]
[1755237955474,0.108,4641.9,4641.6,0.001]
[1755237956044,0.108,4642.1,4641.7,0.4588]
[1755237956375,0.108,4642.1,4641.7,0.956]
[1755237957367,0.108,4642.1,4641.6,0.001]
[1755237958903,2.15424386,4642.0,4641.6,0.001]
[1755237959102,0.108,4641.7,4641.6,0.001]
[1755237961511,0.108,4641.7,4641.6,1.001]
[1755237962375,2.26238309,4641.7,4641.6,1.001]
[1755237962570,2.26238309,4641.7,4641.6,0.001]
[1755237962808,2.73198309,4641.7,4641.6,0.001]
[1755237963031,0.5776,4641.7,4641.6,0.001]
[1755237963301,2.73198309,4641.7,4641.6,0.001]
[1755237963686,3.25321287,4641.7,4641.6,0.001]
[1755237963885,2.73198309,4641.7,4641.6,0.001]
[1755237964508,3.22628309,4641.7,4641.6,0.001]
[1755237964675,2.73198309,4641.7,4641.6,0.001]
[1755237964874,2.75891287,4641.7,4641.6,0.001]
[1755237965072,3.25321287,4641.7,4641.6,0.001]
[1755237965311,3.22628309,4641.7,4641.6,0.001]
[1755237965510,2.73198309,4641.7,4641.6,0.001]
[1755237965806,3.25321287,4641.7,4641.6,0.001]
[1755237966387,3.22628309,4641.7,4641.6,0.001]
[1755237966709,2.73198309,4641.7,4641.6,0.001]
[1755237966897,3.22628309,4641.7,4641.6,0.001]
[1755237967986,3.25321287,4641.7,4641.6,0.001]
[1755237968705,3.22628309,4641.7,4641.6,0.001]
[1755237968878,2.73198309,4641.7,4641.6,0.001]
[1755237969079,2.26238309,4641.7,4641.6,0.001]
[1755237970409,0.108,4641.7,4641.6,0.001]
[1755237970784,0.0608,4641.7,4641.6,0.001]
[1755237972914,0.0608,4641.7,4641.6,0.4982]
[1755237973078,0.0608,4641.7,4641.6,0.957]
[1755237973611,0.0608,4641.7,4641.6,0.001]
[1755237973612,2.21518309,4641.7,4641.6,0.001]
[1755237973916,2.71171287,4641.7,4641.6,0.001]
[1755237974214,3.20601287,4641.7,4641.6,0.001]
[1755237974620,3.20601287,4641.7,4641.2,0.001]
[1755237974621,2.15456876,4641.3,4641.2,0.001]
[1755237974783,12.07163786,4641.3,4641.2,0.001]
[1755237974984,13.00860576,4641.3,4641.2,0.001]
[1755237975795,2.15484732,4640.7,4639.6,0.001]
[1755237975992,11.93698432,4640.7,4639.6,0.001]
[1755237976215,12.90088432,4640.7,4639.6,0.001]
[1755237976419,13.00888432,4640.7,4639.6,0.001]
[1755237977226,2.15503307,4640.3,4640.2,1e-08]
[1755237977538,2.15521886,4639.9,4639.8,1e-08]
[1755237977725,5.54315909,4639.9,4639.8,1e-08]
[1755237977903,5.54315909,4639.9,4639.5,0.001]
[1755237977904,2.15535822,4639.6,4639.5,0.001]
[1755237978100,11.96443719,4639.6,4639.5,0.001]
[1755237978304,13.00939522,4639.6,4639.5,0.001]
[1755237978531,13.00939522,4639.6,4639.5,1e-08]
[1755237980135,12.04549522,4639.6,4639.5,1e-08]
[1755237980446,2.26335822,4639.6,4639.5,1e-08]
[1755237980614,0.108,4639.6,4639.5,1e-08]
[1755237980814,3.469,4639.6,4639.5,0.95600001]
[1755237981134,3.361,4639.6,4639.5,0.95600001]
[1755237981449,3.469,4639.6,4639.5,1.26715359]
[1755237981945,3.469,4639.6,4639.5,0.95600001]
[1755237982643,3.469,4639.6,4639.5,1e-08]
[1755237983064,3.469,4639.6,4639.5,0.88120001]
[1755237984746,0.108,4639.6,4639.5,0.88120001]
[1755237985058,2.15480917,4640.8,4639.8,2.15524911]
[1755237985254,3.361,4640.7,4639.9,0.8812]
[1755237985416,0.108,4640.0,4639.9,0.8812]
[1755237987150,0.108,4640.6,4640.0,2.15517241]
[1755237987339,3.476,4640.6,4640.1,2.15511912]
[1755237987541,3.476,4640.6,4640.2,0.8812]
[1755237987866,3.476,4640.6,4639.9,0.108]
[1755237987867,0.02693675,4640.5,4639.9,0.108]
[1755237988025,3.476,4640.6,4640.1,0.4509]
[1755237988335,3.368,4640.6,4640.2,0.8812]
[1755237988522,0.108,4640.3,4640.2,0.8812]
[1755237988724,0.108,4640.3,4640.0,2.15516404]
[1755237989056,5.52293438,4640.6,4639.5,2.15536798]
[1755237989269,0.108,4640.0,4639.6,0.8812]
[1755237989436,3.367,4640.1,4639.5,1e-08]
[1755237989625,0.108,4639.6,4639.5,0.88120001]
[1755237991058,0.108,4639.6,4639.5,3.03660468]
[1755237991264,0.108,4640.2,4639.5,1.51000363]
[1755237991466,0.108,4640.2,4639.9,2.15521778]
[1755237991965,0.108,4640.2,4640.1,2.15512596]
[1755237992323,0.108,4640.2,4640.1,0.8812]
[1755237992528,0.108,4640.2,4640.1,3.03632596]
[1755237992958,0.108,4640.2,4640.1,0.8812]
[1755237994027,0.108,4640.2,4640.1,3.03632596]
[1755237994339,0.108,4640.2,4640.1,0.8812]
[1755237994545,0.108,4640.3,4639.8,2.15521995]
[1755237994765,0.108,4640.3,4639.9,3.03641348]
[1755237995065,0.108,4640.3,4640.2,2.15507952]
[1755237995586,0.108,4640.3,4640.2,3.03627952]
[1755237996367,0.108,4640.3,4640.2,3.5554281]
[1755237996663,0.002,4641.3,4641.2,2.15461518]
[1755237996864,0.002,4641.3,4641.1,2.15465866]
[1755237997042,0.002,4641.3,4641.2,2.15461518]
[1755237997663,0.002,4641.3,4641.2,0.8812]
[1755237999037,0.002,4641.3,4641.2,0.4509]
[1755237999366,0.002,4641.3,4641.2,3.03581518]
[1755237999534,0.002,4641.3,4640.8,2.15475945]
[1755237999734,0.002,4641.3,4640.9,0.8812]
[1755238000765,0.002,4641.3,4641.0,2.15470803]
[1755238001154,0.002,4641.3,4640.7,0.108]
[1755238001358,0.0289321,4641.3,4640.7,2.15484556]
[1755238001667,0.0289321,4641.3,4640.4,0.8812]
[1755238001668,0.108,4641.1,4640.5,0.108]
[1755238001881,0.108,4641.1,4640.7,3.03604732]
[1755238002161,0.108,4641.1,4640.8,0.8812]
[1755238002373,0.108,4641.1,4641.0,2.15470803]
[1755238002540,0.108,4641.1,4640.9,3.03594701]
[1755238002953,0.108,4641.1,4641.0,2.58500803]
[1755238003148,0.108,4641.1,4641.0,3.03590803]
[1755238003734,0.108,4641.1,4640.8,2.15476069]
[1755238004071,0.108,4641.1,4640.6,4.25]
[1755238004365,0.108,4641.1,4640.7,2.15484486]
[1755238004540,0.108,4641.1,4640.6,5.1312]
[1755238005075,0.108,4641.1,4640.7,0.8812]
[1755238005368,0.108,4641.1,4640.8,2.15476013]
[1755238005958,0.108,4641.1,4640.8,2.15479736]
[1755238006349,0.108,4641.1,4640.9,2.15474804]
[1755238006670,0.108,4641.1,4640.8,2.15480089]
[1755238006839,0.108,4641.1,4640.7,2.15484137]
[1755238007039,0.108,4641.1,4640.8,2.15479487]
[1755238007252,0.108,4641.1,4640.5,0.108]
[1755238007457,0.108,4641.1,4641.0,2.15470803]
[1755238007869,0.108,4641.1,4641.0,0.8812]
[1755238008268,0.108,4641.1,4640.9,2.15475072]
[1755238008471,0.108,4641.1,4641.0,2.15470803]
[1755238008974,0.108,4641.1,4641.0,0.8812]
[1755238009342,0.002,4641.3,4641.0,3.05178328]
[1755238009547,0.002,4641.3,4641.1,0.4509]
[1755238009783,0.002,4641.3,4641.2,2.15461518]
[1755238010072,0.002,4641.3,4641.2,2.42898005]
[1755238010277,0.002,4641.3,4641.2,6.41817963]
[1755238010474,0.002,4641.3,4641.2,6.4023067]
[1755238011182,1e-08,4641.3,4641.2,6.4023067]
[1755238011857,1e-08,4641.3,4641.2,9.7563067]
[1755238012555,1e-08,4641.3,4641.2,9.7553067]
[1755238012751,1e-08,4641.3,4641.2,9.7593067]
[1755238012962,1e-08,4641.3,4641.2,6.50081518]
[1755238013162,1e-08,4641.3,4641.2,5.61961518]
[1755238013489,1e-08,4641.3,4641.2,6.55791518]
[1755238015271,1e-08,4641.3,4641.2,5.61861518]
[1755238015686,1e-08,4641.3,4641.2,2.26261518]
[1755238016007,1e-08,4641.3,4641.2,2.15461518]
[1755238016289,1e-08,4641.3,4641.2,3.355]
[1755238016786,1e-08,4641.3,4641.2,2.15461518]
[1755238017166,1e-08,4641.3,4641.1,2.15465434]
[1755238017549,1e-08,4641.3,4641.0,3.355]
[1755238017755,1e-08,4641.3,4641.0,3.354]
[1755238017756,0.4745,4641.2,4641.0,3.354]
[1755238017989,0.5825,4641.1,4640.8,3.354]
[1755238018575,0.108,4641.1,4640.1,0.108]
[1755238018781,0.4745,4641.0,4640.2,3.354]
[1755238019086,0.108,4640.3,4640.2,5.50907952]
[1755238019286,0.108,4640.3,4640.0,2.1551284]
[1755238019490,0.108,4640.3,4640.2,3.356]
[1755238019656,0.108,4640.3,4640.2,5.51107952]
[1755238020395,0.108,4640.3,4640.2,3.356]
[1755238020625,0.108,4640.3,4640.2,3.355]
[1755238020899,1.0618,4640.3,4639.5,1e-08]
[1755238021060,0.108,4639.6,4639.5,1e-08]
[1755238021471,3.21715822,4639.6,4639.5,1e-08]
[1755238021872,2.15559052,4639.1,4639.0,0.001]
[1755238022082,2.2905354,4639.1,4639.0,0.001]
[1755238022292,3.2443354,4639.1,4639.0,0.001]
[1755238022800,9.6654724,4639.1,4639.0,0.001]
[1755238022996,9.63852752,4639.1,4639.0,0.001]
[1755238026784,3.21739052,4639.1,4639.0,0.001]
[1755238027179,9.6654724,4639.1,4639.0,0.001]
[1755238027475,9.63852752,4639.1,4639.0,0.001]
[1755238028409,9.80199919,4639.1,4639.0,0.001]
[1755238029207,9.15922752,4639.1,4639.0,0.001]
[1755238029709,9.63852752,4639.1,4639.0,0.001]
[1755238030223,0.108,4639.1,4639.0,0.001]
[1755238030377,5.61659052,4639.1,4639.0,0.001]
[1755238030578,3.461,4639.1,4639.0,0.001]
[1755238030883,5.61659052,4639.1,4639.0,0.001]
[1755238031200,6.57039052,4639.1,4639.0,0.001]
[1755238031513,5.61659052,4639.1,4639.0,0.001]
[1755238031891,0.108,4639.1,4639.0,0.4493]
[1755238032224,0.108,4639.1,4639.0,0.9393]
[1755238032380,2.26359052,4639.1,4639.0,0.001]
[1755238032986,0.108,4639.1,4639.0,0.001]
[1755238033483,0.108,4639.1,4639.0,0.9393]
[1755238034315,0.108,4639.1,4639.0,3.09493699]
[1755238035015,0.108,4639.1,4639.0,0.9393]
[1755238036705,0.108,4639.1,4639.0,3.09493699]
[1755238037330,0.108,4639.1,4639.0,0.001]
[1755238037692,0.108,4639.1,4639.0,0.9393]
[1755238039019,0.108,4639.1,4639.0,3.40443974]
[1755238039389,0.108,4639.6,4639.4,2.15543322]
[1755238039590,1.5654853,4641.0,4640.0,2.15513268]
[1755238039816,0.108,4640.2,4640.1,3.09340536]
[1755238041216,3.351,4640.9,4640.6,2.15488257]
[1755238041414,0.108,4640.7,4640.0,0.108]
[1755238041606,0.108,4640.7,4640.1,2.15512596]
[1755238042299,0.108,4640.4,4640.2,2.15507185]
[1755238042798,0.108,4640.4,4640.1,2.15512287]
[1755238043146,0.108,4640.4,4639.4,3.35]
[1755238043427,0.108,4640.4,4640.0,0.9357]
[1755238043727,0.108,4640.4,4639.9,2.15521385]
[1755238044298,0.108,4640.4,4639.7,0.108]
[1755238044497,3.351,4640.9,4639.5,1.48625415]
[1755238044736,0.108,4639.8,4639.7,2.15529655]
[1755238045402,0.108,4639.8,4639.7,3.09099655]
[1755238046011,0.108,4639.8,4639.7,2.15529655]
[1755238046212,0.108,4639.8,4639.6,2.15535664]
[1755238046397,0.108,4639.8,4639.2,0.108]
[1755238046602,0.108,4639.8,4639.3,0.9357]
[1755238046820,0.108,4639.8,4639.4,0.9357]
[1755238047026,0.108,4639.8,4639.7,2.15531176]
[1755238047226,0.108,4639.8,4639.5,0.9357]
[1755238047607,0.108,4639.8,4639.6,0.9357]
[1755238048212,0.108,4639.8,4639.5,2.15540139]
[1755238048735,0.108,4639.8,4639.3,0.32002315]
[1755238049046,0.108,4639.8,4639.4,3.0911129]
[1755238049345,0.108,4639.8,4639.1,3.347]
[1755238050138,0.108,4639.8,4639.4,2.15544076]
[1755238050335,0.108,4639.8,4639.5,2.15540401]
[1755238050704,0.108,4639.8,4639.5,3.09110401]
[1755238050901,0.108,4639.8,4639.5,0.9357]
[1755238051102,0.108,4639.8,4639.2,2.42388374]
[1755238051103,0.108,4639.8,4639.4,2.15544685]
[1755238051608,0.108,4639.8,4639.5,0.4607]
[1755238051808,0.108,4639.8,4639.4,2.63044685]
[1755238052335,2.15508613,4640.2,4639.1,5.96328706]
[1755238052336,2.15522411,4639.9,4639.1,2.15558555]
[1755238052535,0.108,4639.2,4639.0,3.347]
[1755238053203,0.108,4639.2,4639.0,5.50263183]
[1755238053409,0.108,4639.2,4639.1,0.4607]
[1755238054037,0.108,4639.2,4639.1,2.61629052]
[1755238054237,2.15700888,4640.4,4639.2,2.15554405]
[1755238054407,2.15511717,4640.2,4639.3,3.352]
[1755238054804,2.60411717,4640.2,4639.3,3.352]
[1755238055038,0.002,4640.4,4639.3,3.352]
[1755238055241,0.002,4640.4,4639.8,2.15524808]
[1755238055447,0.002,4640.4,4639.4,4.2867]
[1755238055621,2.15699016,4640.4,4639.5,2.15540467]
[1755238055807,0.21569902,4640.3,4639.0,2.1565968]
[1755238056012,2.15514114,4640.1,4639.0,5.5065968]
[1755238056346,0.002,4640.4,4639.0,3.351]
[1755238056639,0.002,4640.4,4639.3,2.15545473]
[1755238056840,2.1551182,4640.2,4639.2,2.15553751]
[1755238057137,2.15517453,4640.0,4639.1,3.09128191]
[1755238057308,2.4157438,4640.1,4639.1,3.09128191]
[1755238057508,0.26061182,4640.1,4639.0,2.15662897]
[1755238057727,2.15521886,4639.9,4639.0,0.001]
[1755238057932,0.23938818,4639.8,4639.0,2.15662925]
[1755238058131,0.002,4640.4,4639.1,0.9357]
[1755238058306,0.002,4640.4,4639.5,2.1553668]
[1755238058711,0.002,4640.4,4639.6,0.4607]
[1755238059135,0.002,4640.4,4639.3,3.35]
[1755238059325,0.002,4640.4,4639.6,0.4607]
[1755238059520,0.002,4640.4,4639.6,0.9357]
[1755238060444,0.002,4640.4,4639.6,3.09105808]
[1755238060741,0.002,4640.4,4639.6,0.9357]
[1755238060922,0.21768532,4640.4,4639.6,0.9357]
[1755238061122,0.002,4640.4,4639.6,0.9357]
[1755238061455,0.002,4640.4,4639.7,2.15529628]
[1755238061959,0.002,4640.4,4639.6,2.15535193]
[1755238062160,0.002,4640.4,4639.7,3.09100706]
[1755238062518,0.002,4640.4,4639.7,0.9357]
[1755238062944,0.002,4640.4,4639.4,2.15540597]
[1755238063548,0.002,4640.4,4639.5,2.15540304]
[1755238063713,0.002,4640.4,4639.2,6.43923446]
[1755238063913,0.26259419,4640.4,4639.1,0.001]
[1755238064110,0.108,4639.2,4639.1,0.001]
[1755238070042,0.108,4639.2,4639.1,2.15659052]